bitfinex/quotes_SOLUSD_20251119
["timestamp","ask_amount","ask_price","bid_price","bid_amount"]
[1763523403614,5.43381025,140.29,140.27,0.66]
[1763523403991,5.43381025,140.3,140.27,0.66]
[1763523404396,5.43381025,140.29,140.27,0.66]
[1763523405198,5.43381025,140.3,140.27,0.66]
[1763523405611,18.12096,140.32,140.27,0.66]
[1763523405921,5.43381025,140.31,140.27,0.66]
[1763523409314,7.40840611,140.38,140.27,6.09381025]
[1763523409495,5.43381025,140.34,140.28,5.43381025]
[1763523409694,5.43381025,140.35,140.29,6.09381025]
[1763523410008,5.43381025,140.35,140.3,5.43381025]
[1763523410208,5.43381025,140.35,140.3,0.66]
[1763523410402,5.43381025,140.36,140.31,0.66]
[1763523410604,27.90978769,140.37,140.31,0.66]
[1763523410809,5.43381025,140.36,140.31,0.66]
[1763523411199,18.12096,140.37,140.31,6.09381025]
[1763523411394,5.43381025,140.36,140.31,6.09381025]
[1763523411623,5.43381025,140.36,140.32,0.66]
[1763523412229,5.43381025,140.33,140.29,0.66]
[1763523412518,5.43381025,140.34,140.3,0.66]
[1763523412888,5.43381025,140.33,140.3,0.66]
[1763523413091,5.43381025,140.34,140.3,0.66]
[1763523413292,5.43381025,140.33,140.3,0.66]
[1763523414000,5.43381025,140.32,140.3,0.66]
[1763523414516,5.43381025,140.31,140.3,0.66]
[1763523414891,5.43381025,140.32,140.3,0.66]
[1763523415092,32.16978769,140.36,140.3,0.66]
[1763523415300,5.43381025,140.32,140.3,0.66]
[1763523416317,5.43381025,140.35,140.3,0.66]
[1763523416508,5.43381025,140.33,140.3,0.66]
[1763523416710,5.43381025,140.32,140.3,0.66]
[1763523417305,5.43381025,140.31,140.3,0.66]
[1763523417511,5.43381025,140.32,140.3,0.66]
[1763523417921,5.43381025,140.31,140.3,0.66]
[1763523418516,5.43381025,140.32,140.3,0.66]
[1763523419319,5.43381025,140.33,140.3,0.66]
[1763523419929,5.43381025,140.34,140.3,0.66]
[1763523420103,5.43381025,140.33,140.3,0.66]
[1763523420819,5.43381025,140.34,140.3,0.66]
[1763523421004,9.78882769,140.36,140.3,0.66]
[1763523421210,5.43381025,140.33,140.3,0.66]
[1763523422927,5.43381025,140.35,140.3,0.66]
[1763523423623,5.43381025,140.37,140.31,5.43381025]
[1763523424003,5.43381025,140.37,140.32,0.66]
[1763523424205,27.90978769,140.39,140.32,0.66]
[1763523424434,5.43381025,140.33,140.3,0.66]
[1763523424629,5.43381025,140.32,140.24,61.8]
[1763523424930,5.43381025,140.27,140.23,0.66]
[1763523425333,9.78882769,140.29,140.23,0.66]
[1763523425501,5.43381025,140.3,140.24,5.43381025]
[1763523425699,23.55477025,140.31,140.25,5.43381025]
[1763523425904,5.43381025,140.29,140.23,6.09381025]
[1763523426128,5.43381025,140.29,140.23,10.35381025]
[1763523426427,5.43381025,140.29,140.24,0.66]
[1763523427007,5.43381025,140.3,140.24,6.09381025]
[1763523427506,5.43381025,140.28,140.25,0.66]
[1763523427700,5.43381025,140.3,140.25,0.66]
[1763523428621,5.43381025,140.29,140.25,0.66]
[1763523428825,5.43381025,140.3,140.25,0.66]
[1763523429028,18.12096,140.32,140.25,0.66]
[1763523429227,5.43381025,140.3,140.25,0.66]
[1763523429426,5.43381025,140.29,140.25,0.66]
[1763523430426,5.43381025,140.31,140.26,5.43381025]
[1763523430629,5.43381025,140.31,140.25,6.09381025]
[1763523430825,5.43381025,140.3,140.25,0.66]
[1763523431032,5.43381025,140.29,140.26,0.66]
[1763523431735,5.43381025,140.3,140.26,0.66]
[1763523432326,5.43381025,140.29,140.26,0.66]
[1763523433050,5.43381025,140.27,140.23,4.98]
[1763523433213,5.43381025,140.26,140.24,0.72]
[1763523433741,18.12096,140.31,140.24,0.72]
[1763523433935,5.43381025,140.28,140.24,0.72]
[1763523434844,5.43381025,140.27,140.24,0.72]
[1763523435048,5.43381025,140.26,140.24,0.72]
[1763523435250,18.12096,140.31,140.24,0.72]
[1763523435251,5.43381025,140.27,140.24,0.72]
[1763523436343,5.43381025,140.25,140.23,0.72]
[1763523436727,19.48263794,140.3,140.23,0.72]
[1763523436728,5.43381025,140.24,140.23,0.72]
[1763523437043,5.43381025,140.24,140.22,0.72]
[1763523438745,18.12096,140.29,140.22,0.72]
[1763523439045,5.43381025,140.26,140.22,0.72]
[1763523439346,5.43381025,140.25,140.22,0.72]
[1763523440138,18.12096,140.27,140.22,0.72]
[1763523440338,5.43381025,140.24,140.22,0.72]
[1763523441049,5.43381025,140.25,140.22,0.72]
[1763523441950,5.43381025,140.26,140.22,0.72]
[1763523442335,5.43381025,140.25,140.22,0.72]
[1763523442552,5.43381025,140.26,140.22,0.72]
[1763523442929,9.09366919,140.26,140.22,0.72]
[1763523443134,9.09366919,140.25,140.22,0.72]
[1763523443644,9.09366919,140.23,140.2,0.68]
[1763523443846,9.09366919,140.22,140.2,0.68]
[1763523444031,9.09366919,140.21,140.18,0.68]
[1763523444927,9.09366919,140.23,140.18,0.68]
[1763523445126,9.09366919,140.21,140.18,0.68]
[1763523445552,14.04882769,140.26,140.18,0.68]
[1763523445734,9.09366919,140.23,140.18,0.68]
[1763523446251,4.26,140.26,140.18,0.68]
[1763523446452,4.26,140.28,140.19,9.09366919]
[1763523446750,9.09366919,140.26,140.19,9.09366919]
[1763523446946,9.09366919,140.26,140.2,0.68]
[1763523447153,9.09366919,140.25,140.2,0.68]
[1763523447531,9.09366919,140.26,140.2,0.68]
[1763523447830,9.09366919,140.25,140.2,0.68]
[1763523448033,9.09366919,140.26,140.2,0.68]
[1763523448554,9.09366919,140.25,140.2,0.68]
[1763523448748,9.09366919,140.24,140.2,0.68]
[1763523449159,2.0,140.36,140.2,0.68]
[1763523449358,9.09366919,140.31,140.25,9.09366919]
[1763523449752,9.09366919,140.31,140.26,0.68]
[1763523450137,9.78882769,140.34,140.26,0.68]
[1763523450435,9.09366919,140.31,140.26,0.68]
[1763523450836,9.09366919,140.3,140.26,0.68]
[1763523451861,9.09366919,140.29,140.26,0.68]
[1763523452051,9.09366919,140.27,140.25,0.68]
[1763523453156,9.09366919,140.28,140.25,0.68]
[1763523453562,9.78882769,140.34,140.21,0.68]
[1763523453563,9.09366919,140.26,140.21,0.68]
[1763523453734,9.09366919,140.25,140.22,0.68]
[1763523453938,14.04882769,140.33,140.23,9.09366919]
[1763523454246,9.09366919,140.29,140.23,9.09366919]
[1763523454440,9.09366919,140.28,140.24,0.68]
[1763523455333,9.09366919,140.29,140.24,0.68]
[1763523455587,14.04882769,140.33,140.24,0.68]
[1763523455588,9.09366919,140.3,140.24,0.68]
[1763523456064,9.09366919,140.29,140.24,0.68]
[1763523456558,9.09366919,140.3,140.24,9.77366919]
[1763523456754,9.09366919,140.29,140.24,0.68]
[1763523456967,4.26,140.33,140.25,0.68]
[1763523457135,9.09366919,140.29,140.25,0.68]
[1763523457763,4.26,140.33,140.25,0.68]
[1763523457936,9.09366919,140.29,140.25,0.68]
[1763523458137,9.09366919,140.29,140.25,4.94]
[1763523459065,9.09366919,140.29,140.25,0.68]
[1763523459253,4.26,140.33,140.25,0.68]
[1763523459254,9.09366919,140.27,140.25,0.68]
[1763523460439,9.09366919,140.26,140.23,0.68]
[1763523462062,4.26,140.33,140.23,0.68]
[1763523462063,9.09366919,140.25,140.23,0.68]
[1763523462565,9.09366919,140.26,140.23,0.68]
[1763523463255,9.09366919,140.26,140.19,70.89366919]
[1763523463455,9.09366919,140.23,140.19,0.68]
[1763523463662,9.09366919,140.2,140.15,0.1]
[1763523463969,9.09366919,140.17,140.15,0.1]
[1763523464594,9.09366919,140.16,140.15,0.1]
[1763523465244,9.78882769,140.2,140.15,0.1]
[1763523465451,9.09366919,140.16,140.15,0.1]
[1763523467459,18.88249688,140.16,140.15,0.1]
[1763523468340,18.12096,140.13,140.08,0.68]
[1763523468545,9.09366919,140.09,140.05,3.4]
[1763523468743,9.09366919,140.08,140.05,3.4]
[1763523469067,18.12096,140.13,140.07,0.68]
[1763523469252,9.09366919,140.11,140.07,0.68]
[1763523469953,9.09366919,140.12,140.07,0.68]
[1763523470172,9.09366919,140.13,140.07,9.77366919]
[1763523470471,9.09366919,140.13,140.08,0.68]
[1763523470771,9.09366919,140.12,140.08,0.68]
[1763523471077,9.09366919,140.11,140.08,0.68]
[1763523471447,2.0,140.26,140.09,9.09366919]
[1763523471769,9.09366919,140.17,140.11,9.09366919]
[1763523472185,9.09366919,140.17,140.12,0.68]
[1763523472550,9.09366919,140.14,140.12,0.68]
[1763523472850,9.09366919,140.15,140.12,0.68]
[1763523473086,18.12096,140.17,140.12,0.68]
[1763523473276,4.26,140.2,140.12,0.68]
[1763523473449,9.09366919,140.16,140.12,0.68]
[1763523474295,9.09366919,140.18,140.12,9.77366919]
[1763523474504,4.26,140.21,140.12,9.77366919]
[1763523474505,9.09366919,140.19,140.13,9.09366919]
[1763523474666,9.09366919,140.19,140.13,9.77366919]
[1763523474867,9.09366919,140.2,140.14,9.77366919]
[1763523475169,32.16978769,140.24,140.15,9.09366919]
[1763523475492,9.09366919,140.22,140.16,9.09366919]
[1763523475680,9.09366919,140.22,140.16,0.68]
[1763523475884,9.09366919,140.22,140.17,0.68]
[1763523476401,9.09366919,140.22,140.17,9.77366919]
[1763523476601,9.09366919,140.25,140.19,9.09366919]
[1763523476787,9.09366919,140.25,140.2,9.09366919]
[1763523477108,9.09366919,140.25,140.19,13.35366919]
[1763523477268,2.0,140.38,140.18,0.68]
[1763523477466,9.09366919,140.28,140.22,9.09366919]
[1763523477663,9.09366919,140.27,140.21,9.09366919]
[1763523478162,9.09366919,140.27,140.2,0.68]
[1763523478163,9.09366919,140.24,140.2,0.68]
[1763523478593,9.09366919,140.23,140.2,0.68]
[1763523478889,9.09366919,140.22,140.2,0.68]
[1763523479590,4.26,140.27,140.18,0.68]
[1763523479591,9.09366919,140.21,140.18,0.68]
[1763523479783,9.09366919,140.19,140.15,0.68]
[1763523479977,4.26,140.23,140.15,0.68]
[1763523480276,9.78882769,140.22,140.15,0.68]
[1763523480614,9.09366919,140.18,140.15,0.68]
[1763523480987,9.09366919,140.19,140.15,0.68]
[1763523481283,9.09366919,140.23,140.17,9.09366919]
[1763523481492,9.09366919,140.22,140.15,0.68]
[1763523481791,9.09366919,140.19,140.15,0.68]
[1763523482193,9.09366919,140.2,140.15,0.68]
[1763523482396,9.09366919,140.21,140.15,0.68]
[1763523482598,18.12096,140.25,140.15,0.68]
[1763523482599,18.12096,140.24,140.15,9.77366919]
[1763523482900,9.09366919,140.23,140.17,9.09366919]
[1763523483103,9.78882769,140.27,140.18,9.09366919]
[1763523483279,9.09366919,140.24,140.18,9.09366919]
[1763523483474,9.09366919,140.24,140.19,0.68]
[1763523484295,9.09366919,140.23,140.19,0.68]
[1763523484601,18.12096,140.26,140.19,0.68]
[1763523484898,9.09366919,140.24,140.19,0.68]
[1763523485199,4.26,140.28,140.19,9.77366919]
[1763523485200,9.09366919,140.25,140.19,9.77366919]
[1763523485380,9.09366919,140.24,140.19,0.68]
[1763523485570,9.09366919,140.23,140.2,0.68]
[1763523486073,9.09366919,140.24,140.2,0.68]
[1763523486880,9.09366919,140.24,140.13,4.26]
[1763523486881,9.09366919,140.21,140.17,0.68]
[1763523487083,18.12096,140.26,140.17,9.77366919]
[1763523487396,9.09366919,140.22,140.17,9.77366919]
[1763523487697,9.09366919,140.22,140.18,0.68]
[1763523487999,9.09366919,140.21,140.18,0.68]
[1763523488682,9.09366919,140.2,140.15,9.09366919]
[1763523488890,9.09366919,140.19,140.16,0.68]
[1763523489282,9.09366919,140.2,140.16,0.68]
[1763523490002,9.09366919,140.19,140.12,18.12096]
[1763523490199,9.09366919,140.15,140.12,0.68]
[1763523490376,9.09366919,140.14,140.1,0.68]
[1763523490581,9.09366919,140.11,140.07,0.68]
[1763523490900,9.09366919,140.1,140.07,0.68]
[1763523491503,9.09366919,140.09,140.06,1.93593088]
[1763523491708,9.09366919,140.09,140.07,0.68]
[1763523492380,9.09366919,140.1,140.07,0.68]
[1763523493006,32.18978769,140.14,140.06,1.93593088]
[1763523493176,9.09366919,140.08,140.06,1.93593088]
[1763523493377,9.09366919,140.09,140.06,1.93593088]
[1763523493688,9.0336434,140.07,140.06,1.93593088]
[1763523494406,9.09366919,140.08,140.06,1.93593088]
[1763523495011,9.09366919,140.07,140.06,1.93593088]
[1763523498787,22.40096,140.09,140.06,1.93593088]
[1763523498990,9.09366919,140.07,140.06,1.93593088]
[1763523501509,22.40096,140.09,140.06,1.93593088]
[1763523501809,9.09366919,140.07,140.06,1.93593088]
[1763523502910,5.45518836,140.07,140.06,1.93593088]
[1763523506305,22.40096,140.09,140.06,1.93593088]
[1763523506702,5.45518836,140.07,140.06,1.93593088]
[1763523507089,5.45518836,140.07,140.06,2.60593088]
[1763523507838,5.45518836,140.07,140.06,1.93593088]
[1763523509310,9.78882769,140.07,140.06,1.93593088]
[1763523509510,15.24401605,140.07,140.06,1.93593088]
[1763523511307,18.12096,140.04,139.95,4.28]
[1763523511508,9.78882769,140.07,139.99,6.12518836]
[1763523511700,5.78294872,140.15,140.02,5.45518836]
[1763523511904,5.45518836,140.06,140.0,6.12518836]
[1763523512103,5.45518836,140.05,140.0,6.12518836]
[1763523512414,5.45518836,140.06,140.01,0.67]
[1763523512619,5.45518836,140.06,140.01,6.12518836]
[1763523512817,5.45518836,140.06,140.01,0.67]
[1763523513127,9.78882769,140.09,140.02,0.67]
[1763523513820,5.45518836,140.04,140.02,0.67]
[1763523514012,5.45518836,140.05,140.02,0.67]
[1763523514825,5.45518836,140.06,140.02,0.67]
[1763523515020,5.45518836,140.05,140.02,0.67]
[1763523515200,5.45518836,140.04,140.02,0.67]
[1763523515400,5.45518836,140.05,140.02,0.67]
[1763523515612,9.73518836,140.07,140.02,0.67]
[1763523515809,5.45518836,140.08,140.02,6.12518836]
[1763523516222,5.45518836,140.08,140.03,0.67]
[1763523516628,14.06882769,140.11,140.03,0.67]
[1763523516930,5.45518836,140.1,140.04,5.45518836]
[1763523517229,5.45518836,140.13,140.07,5.45518836]
[1763523517599,5.45518836,140.13,140.01,25.68]
[1763523517600,5.45518836,140.13,140.08,6.12518836]
[1763523518227,4.28,140.15,140.09,6.12518836]
[1763523518532,9.73518836,140.15,140.1,0.67]
[1763523518822,4.28,140.18,140.1,0.67]
[1763523518999,5.45518836,140.14,140.1,0.67]
[1763523519201,5.45518836,140.12,140.1,0.67]
[1763523519506,4.28,140.15,140.1,0.67]
[1763523519711,5.45518836,140.13,140.1,0.67]
[1763523521332,5.45518836,140.12,140.1,0.67]
[1763523521623,27.85614836,140.11,140.04,0.67]
[1763523521825,18.12096,140.11,140.04,0.67]
[1763523522130,5.45518836,140.08,140.04,0.67]
[1763523522330,5.45518836,140.05,140.01,0.7]
[1763523522505,5.45518836,140.02,139.96,9.73518836]
[1763523522826,5.45518836,140.02,140.0,0.7]
[1763523523029,5.45518836,140.01,140.0,0.7]
[1763523523201,5.45518836,140.02,140.0,0.7]
[1763523523407,5.45518836,140.03,140.0,0.7]
[1763523524330,18.12096,140.06,140.0,0.7]
[1763523524528,5.45518836,140.05,140.0,0.7]
[1763523524718,18.12096,140.07,140.0,0.7]
[1763523526324,5.45518836,140.04,140.0,0.7]
[1763523526522,5.45518836,140.05,140.0,0.7]
[1763523526713,5.45518836,140.03,140.0,0.7]
[1763523527034,5.45518836,140.01,139.97,0.7]
[1763523527327,5.45518836,139.98,139.97,0.7]
[1763523527724,5.45518836,139.99,139.97,0.7]
[1763523528308,5.45518836,139.98,139.97,0.7]
[1763523528530,5.45518836,139.99,139.97,0.7]
[1763523529018,5.45518836,139.98,139.97,0.7]
[1763523529217,5.45518836,139.98,139.95,0.7]
[1763523529526,5.45518836,139.97,139.95,0.7]
[1763523529732,5.45518836,139.98,139.95,0.7]
[1763523529934,5.45518836,140.0,139.95,0.7]
[1763523530232,5.45518836,140.01,139.95,6.15518836]
[1763523530740,4.28,140.03,139.96,0.7]
[1763523530741,5.45518836,139.98,139.96,0.7]
[1763523531336,4.28,140.03,139.96,0.7]
[1763523531540,5.45518836,139.99,139.96,0.7]
[1763523531750,9.78882769,140.05,139.96,0.7]
[1763523532046,5.45518836,140.03,139.98,5.45518836]
[1763523532342,5.45518836,140.02,139.96,6.15518836]
[1763523532815,5.45518836,140.02,139.97,0.7]
[1763523533020,5.45518836,140.03,139.97,0.7]
[1763523533223,5.45518836,140.03,139.97,6.15518836]
[1763523533623,5.45518836,140.03,139.97,0.7]
[1763523533825,5.45518836,140.03,139.97,6.15518836]
[1763523534025,18.52084035,140.09,139.98,5.45518836]
[1763523534026,5.45518836,140.04,139.98,5.45518836]
[1763523534343,5.45518836,140.04,139.98,10.43518836]
[1763523534525,5.45518836,140.04,139.99,0.7]
[1763523534723,18.12096,140.06,140.0,5.45518836]
[1763523534922,14.06882769,140.11,140.01,0.7]
[1763523535117,5.45518836,140.05,140.01,0.7]
[1763523535550,18.12096,140.07,140.01,0.7]
[1763523535726,5.45518836,140.06,140.01,0.7]
[1763523536518,5.45518836,140.05,140.01,0.7]
[1763523536720,5.45518836,140.03,140.01,0.7]
[1763523537149,5.45518836,140.05,140.01,0.7]
[1763523537530,5.45518836,140.07,140.01,6.15518836]
[1763523537923,5.45518836,140.07,140.02,0.7]
[1763523538532,5.45518836,140.03,139.98,0.7]
[1763523538843,5.45518836,140.01,139.99,0.7]
[1763523539140,5.45518836,140.0,139.99,0.7]
[1763523539549,5.45518836,140.01,139.99,0.7]
[1763523539926,5.45518836,140.0,139.99,0.7]
[1763523540846,18.12096,140.07,139.99,0.7]
[1763523541021,5.45518836,140.03,139.99,0.7]
[1763523541639,5.45518836,140.04,139.99,0.7]
[1763523542032,5.45518836,140.03,139.99,0.7]
[1763523542351,5.45518836,140.02,139.99,0.7]
[1763523544754,5.45518836,140.01,139.99,0.7]
[1763523545051,5.45518836,140.0,139.99,0.7]
[1763523545233,5.45518836,140.0,139.98,0.7]
[1763523547331,5.45518836,140.01,139.98,0.7]
[1763523547530,5.45518836,140.02,139.98,0.7]
[1763523548142,5.45518836,140.01,139.98,0.7]
[1763523548735,5.45518836,140.0,139.98,0.7]
[1763523548946,18.12096,140.06,139.98,0.7]
[1763523549150,5.45518836,140.01,139.98,0.7]
[1763523549338,5.45518836,140.03,139.98,0.7]
[1763523549544,5.45518836,140.02,139.98,0.7]
[1763523549762,5.45518836,140.02,139.98,4.98]
[1763523550260,18.12096,140.06,139.99,0.7]
[1763523550457,5.45518836,140.01,139.99,0.7]
[1763523552456,18.12096,140.06,139.99,0.7]
[1763523552457,5.45518836,140.02,139.99,0.7]
[1763523552754,4.28,140.08,139.99,0.7]
[1763523552962,2.0,140.17,140.01,5.45518836]
[1763523553145,5.45518836,140.06,140.02,4.28]
[1763523553662,5.45518836,140.05,140.03,0.7]
[1763523554562,5.45518836,140.06,140.03,0.7]
[1763523554757,18.12096,140.09,140.03,0.7]
[1763523554967,5.45518836,140.06,140.03,0.7]
[1763523555266,5.45518836,140.05,140.03,0.7]
[1763523555740,18.12096,140.07,140.03,0.7]
[1763523555935,18.12096,140.09,140.03,0.7]
[1763523556154,5.45518836,140.05,140.03,0.7]
[1763523556442,5.45518836,140.04,140.03,0.7]
[1763523556638,5.45518836,140.05,140.03,0.7]
[1763523557963,5.94374205,140.22,140.04,5.45518836]
[1763523558159,5.45518836,140.12,140.06,5.45518836]
[1763523558560,5.45518836,140.12,140.07,0.7]
[1763523558761,5.45518836,140.12,140.07,6.15518836]
[1763523559068,5.45518836,140.13,140.08,5.45518836]
[1763523559245,5.45518836,140.2,140.08,6.15518836]
[1763523559445,5.45518836,140.15,140.1,5.45518836]
[1763523559743,5.45518836,140.16,140.11,6.15518836]
[1763523559950,5.45518836,140.16,140.11,0.7]
[1763523560149,5.45518836,140.16,140.12,0.7]
[1763523560352,5.45518836,140.18,140.13,5.45518836]
[1763523560543,5.45518836,140.17,140.12,11.61037672]
[1763523560855,5.45518836,140.17,140.12,0.7]
[1763523561051,5.45518836,140.17,140.13,0.7]
[1763523561565,5.45518836,140.16,140.13,0.7]
[1763523562352,5.45518836,140.17,140.13,0.7]
[1763523562866,5.45518836,140.14,140.11,0.66]
[1763523563066,18.12096,140.17,140.12,0.66]
[1763523563364,5.45518836,140.17,140.12,0.66]
[1763523563757,5.45518836,140.13,140.11,0.66]
[1763523564066,18.12096,140.16,140.11,0.66]
[1763523564367,5.45518836,140.12,140.11,0.66]
[1763523564543,18.12096,140.16,140.09,0.66]
[1763523564738,9.11303321,140.11,140.09,0.66]
[1763523564944,9.11303321,140.1,140.07,4.94]
[1763523565151,9.11303321,140.09,140.07,4.94]
[1763523565363,9.11303321,140.09,140.08,0.66]
[1763523566166,9.11303321,140.1,140.08,0.66]
[1763523567172,9.11303321,140.11,140.08,0.66]
[1763523567672,9.11303321,140.1,140.08,0.66]
[1763523568443,9.11303321,140.09,140.06,4.28]
[1763523568644,27.23399321,140.16,140.0,48.86143469]
[1763523568645,9.11303321,140.07,140.04,0.66]
[1763523569852,18.12096,140.12,140.04,0.66]
[1763523570171,9.11303321,140.07,140.04,0.66]
[1763523570559,9.11303321,140.06,140.04,0.66]
[1763523571465,9.11303321,140.07,140.04,0.66]
[1763523572173,18.12096,140.12,139.99,9.11303321]
[1763523572174,9.11303321,140.05,140.02,0.66]
[1763523572473,9.11303321,140.04,140.01,4.28]
[1763523572675,9.11303321,140.05,140.02,0.66]
[1763523574372,2.0,140.17,140.02,9.77303321]
[1763523574559,9.11303321,140.07,140.02,9.77303321]
[1763523574759,9.11303321,140.07,140.03,0.66]
[1763523575573,9.11303321,140.08,140.03,0.66]
[1763523576584,2.0,140.25,140.07,9.11303321]
[1763523576886,2.0,140.25,140.13,9.11303321]
[1763523576887,9.11303321,140.19,140.13,9.11303321]
[1763523577052,9.11303321,140.2,140.15,9.11303321]
[1763523577454,9.11303321,140.2,140.16,0.66]
[1763523577673,4.08,140.25,140.16,0.66]
[1763523577861,9.11303321,140.19,140.16,0.66]
[1763523579978,9.11303321,140.2,140.16,0.66]
[1763523580886,9.31303321,140.22,140.17,9.11303321]
[1763523581065,9.31303321,140.22,140.17,13.39303321]
[1763523581251,0.2,140.22,140.18,9.77303321]
[1763523581659,0.2,140.22,140.19,0.66]
[1763523582083,9.31303321,140.22,140.17,14.05303321]
[1763523582262,0.2,140.22,140.18,0.66]
[1763523582458,0.2,140.22,140.18,9.77303321]
[1763523582874,9.78882769,140.29,140.19,0.7]
[1763523583159,9.11303321,140.25,140.2,9.11303321]
[1763523583368,9.11303321,140.25,140.21,0.7]
[1763523583569,9.11303321,140.26,140.21,0.7]
[1763523583967,9.11303321,140.25,140.21,0.7]
[1763523584171,9.11303321,140.23,140.2,4.98]
[1763523584373,9.78882769,140.29,140.2,4.98]
[1763523584674,9.11303321,140.25,140.21,0.7]
[1763523585258,9.11303321,140.28,140.22,9.11303321]
[1763523585767,9.11303321,140.28,140.23,0.7]
[1763523586383,18.12096,140.31,140.23,9.81303321]
[1763523586685,0.2,140.32,140.29,9.11303321]
[1763523586891,0.2,140.32,140.28,4.28]
[1763523587072,9.31303321,140.32,140.28,4.28]
[1763523587272,9.11303321,140.3,140.26,0.7]
[1763523587578,9.11303321,140.27,140.24,4.28]
[1763523588597,9.11303321,140.27,140.24,4.98]
[1763523589091,9.98882769,140.32,140.25,0.7]
[1763523589297,9.11303321,140.29,140.25,0.7]
[1763523589599,9.11303321,140.31,140.26,9.11303321]
[1763523589785,9.31303321,140.32,140.27,9.11303321]
[1763523590095,9.11303321,140.3,140.25,9.81303321]
[1763523590462,9.11303321,140.3,140.24,4.28]
[1763523590463,9.11303321,140.29,140.26,0.7]
[1763523590682,0.2,140.32,140.26,0.7]
[1763523590886,9.11303321,140.29,140.26,0.7]
[1763523591196,9.11303321,140.3,140.26,0.7]
[1763523591693,9.11303321,140.29,140.26,0.7]
[1763523591897,9.11303321,140.27,140.24,4.28]
[1763523592067,9.11303321,140.26,140.24,4.28]
[1763523592265,14.26882769,140.32,140.24,4.28]
[1763523592266,9.11303321,140.27,140.24,4.28]
[1763523592661,9.11303321,140.27,140.24,4.98]
[1763523594180,9.11303321,140.25,140.21,4.98]
[1763523594493,9.11303321,140.24,140.21,4.28]
[1763523594682,9.11303321,140.23,140.19,0.7]
[1763523594867,9.11303321,140.21,140.19,4.28]
[1763523595068,9.11303321,140.2,140.19,4.28]
[1763523595271,9.11303321,140.21,140.19,4.28]
[1763523595480,9.11303321,140.23,140.19,4.98]
[1763523595892,9.11303321,140.23,140.19,4.28]
[1763523596190,9.11303321,140.23,140.2,0.7]
[1763523596695,18.12096,140.24,140.2,9.81303321]
[1763523596880,27.23399321,140.24,140.2,0.7]
[1763523597187,4.28,140.27,140.21,0.7]
[1763523597369,4.28,140.27,140.19,14.09303321]
[1763523597569,9.11303321,140.24,140.19,4.98]
[1763523597769,9.11303321,140.22,140.19,4.98]
[1763523598598,9.11303321,140.22,140.2,0.7]
[1763523598793,9.11303321,140.23,140.2,0.7]
[1763523600791,18.12096,140.25,140.2,0.7]
[1763523600996,9.11303321,140.22,140.19,4.28]
[1763523601201,9.11303321,140.21,140.19,4.28]
[1763523601492,18.12096,140.24,140.16,0.7]
[1763523601493,9.11303321,140.2,140.16,0.7]
[1763523601672,32.18978769,140.24,140.16,0.7]
[1763523601870,9.11303321,140.17,140.14,4.28]
[1763523602100,9.11303321,140.16,140.14,4.28]
[1763523602277,18.12096,140.2,140.13,0.7]
[1763523602477,9.11303321,140.18,140.13,4.98]
[1763523602790,9.11303321,140.19,140.14,9.11303321]
[1763523603097,9.11303321,140.18,140.14,0.7]
[1763523603398,9.98882769,140.32,140.17,9.11303321]
[1763523603689,9.11303321,140.2,140.18,4.28]
[1763523604081,9.11303321,140.2,140.18,4.98]
[1763523604283,9.11303321,140.21,140.18,4.98]
[1763523604683,9.11303321,140.2,140.18,4.98]
[1763523605191,27.90978769,140.24,140.18,4.28]
[1763523605376,9.11303321,140.22,140.18,4.28]
[1763523605575,9.11303321,140.22,140.18,4.98]
[1763523605892,9.11303321,140.23,140.19,0.7]
[1763523606098,9.11303321,140.23,140.18,13.39303321]